[Event "*** SCC Grand Prix: Titled Tuesday Blitz"]
[Site "Chess.com"]
[Date "2020.09.29"]
[Round "3"]
[White "Grineva_Marianna"]
[Black "IANOV0007"]
[Result "0-1"]
[WhiteElo "2256"]
[BlackElo "2487"]
[TimeControl "180+1"]
[EndTime "10:27:52 PDT"]
[Termination "IANOV0007 won by resignation"]

1. e4 {[%clk 0:03:00.2]} 1... d6 {[%clk 0:02:59.8]} 2. d4 {[%clk 0:02:59.3]}
2... Nf6 {[%clk 0:02:59.7]} 3. Nc3 {[%clk 0:02:59.8]} 3... c6 {[%clk 0:02:59.7]}
4. f4 {[%clk 0:02:56]} 4... Qb6 {[%clk 0:02:59.3]} 5. Nf3 {[%clk 0:02:50.8]}
5... Bg4 {[%clk 0:02:56.8]} 6. Be2 {[%clk 0:02:47.4]} 6... Bxf3 {[%clk
0:02:56.8]} 7. Bxf3 {[%clk 0:02:46.6]} 7... e5 {[%clk 0:02:56.9]} 8. Ne2 {[%clk
0:02:34]} 8... Nbd7 {[%clk 0:02:55.8]} 9. c3 {[%clk 0:02:32.5]} 9... Be7 {[%clk
0:02:55.7]} 10. O-O {[%clk 0:02:30.3]} 10... d5 {[%clk 0:02:55.7]} 11. fxe5
{[%clk 0:02:25.7]} 11... Nxe5 {[%clk 0:02:55.6]} 12. exd5 {[%clk 0:02:22.8]}
12... Nxf3+ {[%clk 0:02:51.9]} 13. Rxf3 {[%clk 0:02:23.7]} 13... cxd5 {[%clk
0:02:51.4]} 14. Nf4 {[%clk 0:02:19.4]} 14... O-O {[%clk 0:02:48.6]} 15. Qd3
{[%clk 0:02:10.6]} 15... Rad8 {[%clk 0:02:44.5]} 16. b3 {[%clk 0:02:07.6]} 16...
Rfe8 {[%clk 0:02:37.6]} 17. Bd2 {[%clk 0:01:57]} 17... Bd6 {[%clk 0:02:31.7]}
18. Raf1 {[%clk 0:01:54.8]} 18... Qc7 {[%clk 0:02:28.9]} 19. h3 {[%clk
0:01:47.6]} 19... Rd7 {[%clk 0:02:27.7]} 20. Ne2 {[%clk 0:01:42.9]} 20... Ne4
{[%clk 0:02:25.1]} 21. Be1 {[%clk 0:01:40.4]} 21... a6 {[%clk 0:02:22.9]} 22. c4
{[%clk 0:01:38.5]} 22... Qc6 {[%clk 0:02:19.3]} 23. Nf4 {[%clk 0:01:32]} 23...
Bxf4 {[%clk 0:02:15]} 24. Rxf4 {[%clk 0:01:32.9]} 24... b5 {[%clk 0:02:08.9]}
25. cxd5 {[%clk 0:01:25.1]} 25... Qxd5 {[%clk 0:02:07.8]} 26. a4 {[%clk
0:01:03.1]} 26... Nc5 {[%clk 0:02:01.3]} 27. Qg3 {[%clk 0:00:52.6]} 27... Nxb3
{[%clk 0:01:57.1]} 28. axb5 {[%clk 0:00:50.7]} 28... axb5 {[%clk 0:01:56.3]} 29.
Bc3 {[%clk 0:00:45.7]} 29... g6 {[%clk 0:01:47.8]} 30. Qf2 {[%clk 0:00:41.3]}
30... Qc4 {[%clk 0:01:45.5]} 31. Qf3 {[%clk 0:00:31.8]} 31... b4 {[%clk
0:01:39.5]} 32. Ba1 {[%clk 0:00:19.3]} 32... Nd2 {[%clk 0:01:38]} 33. Qg4 {[%clk
0:00:14.5]} 33... Qe6 {[%clk 0:01:30.3]} 34. Qxe6 {[%clk 0:00:13.1]} 34... Rxe6
{[%clk 0:01:30.3]} 35. Rd1 {[%clk 0:00:13.4]} 35... Nb3 {[%clk 0:01:29]} 36. Bb2
{[%clk 0:00:13]} 36... Rd5 {[%clk 0:01:27.1]} 37. Rf3 {[%clk 0:00:12.2]} 37...
Na5 {[%clk 0:01:26.9]} 38. Rb1 {[%clk 0:00:10.7]} 38... Nc4 {[%clk 0:01:26.2]}
39. Kf2 {[%clk 0:00:11]} 39... Nd2 {[%clk 0:01:25.8]} 40. Ra1 {[%clk 0:00:10]}
40... Nxf3 {[%clk 0:01:25]} 41. Kxf3 {[%clk 0:00:09.9]} 41... Re8 {[%clk
0:01:22.9]} 42. Ra4 {[%clk 0:00:09.6]} 42... Rb5 {[%clk 0:01:22.6]} 43. Ra7
{[%clk 0:00:08]} 43... b3 {[%clk 0:01:22]} 44. Ra3 {[%clk 0:00:06]} 44... Rc8
{[%clk 0:01:19.5]} 45. d5 {[%clk 0:00:05.9]} 45... Rxd5 {[%clk 0:01:15.7]} 46.
Rxb3 {[%clk 0:00:05.2]} 46... Rcd8 {[%clk 0:01:15.9]} 47. Re3 {[%clk 0:00:03.7]}
47... Rd3 {[%clk 0:01:15.6]} 48. Be5 {[%clk 0:00:04]} 48... Rxe3+ {[%clk
0:01:15.4]} 49. Kxe3 {[%clk 0:00:04.9]} 49... f5 {[%clk 0:01:15.5]} 50. Kf4
{[%clk 0:00:04.8]} 50... Kf7 {[%clk 0:01:15.6]} 51. g4 {[%clk 0:00:04.3]} 51...
fxg4 {[%clk 0:01:14.6]} 52. hxg4 {[%clk 0:00:05.2]} 52... Ke6 {[%clk 0:01:14.5]}
53. Bc3 {[%clk 0:00:04.9]} 53... Rd3 {[%clk 0:01:13.9]} 54. Ba5 {[%clk
0:00:03.9]} 54... h6 {[%clk 0:01:12.7]} 55. Bc7 {[%clk 0:00:02.8]} 55... Rd4+
{[%clk 0:01:12.4]} 56. Kf3 {[%clk 0:00:02.8]} 56... g5 {[%clk 0:01:11.3]} 57.
Bg3 {[%clk 0:00:02.9]} 57... Rd3+ {[%clk 0:01:10.8]} 58. Kg2 {[%clk 0:00:03.4]}
58... Kd5 {[%clk 0:01:10.8]} 59. Bf2 {[%clk 0:00:03.1]} 59... Ke4 {[%clk
0:01:10.3]} 60. Bb6 {[%clk 0:00:03.6]} 60... Kf4 {[%clk 0:01:09.6]} 61. Ba5
{[%clk 0:00:03.7]} 61... Kxg4 {[%clk 0:01:09.1]} 62. Be1 {[%clk 0:00:04.3]}
62... Re3 {[%clk 0:01:08.9]} 63. Kf2 {[%clk 0:00:03.9]} 63... Rxe1 {[%clk
0:01:08.5]} 64. Kxe1 {[%clk 0:00:04.8]} 64... Kf3 {[%clk 0:01:08.6]} 0-1

[Event "*** SCC Grand Prix: Titled Tuesday Blitz"]
[Site "Chess.com"]
[Date "2020.09.29"]
[Round "3"]
[White "Violord"]
[Black "FairChess_on_YouTube"]
[Result "0-1"]
[WhiteElo "2690"]
[BlackElo "2942"]
[TimeControl "180+1"]
[EndTime "10:27:54 PDT"]
[Termination "FairChess_on_YouTube won on time"]

1. e4 {[%clk 0:03:00]} 1... c5 {[%clk 0:02:47.9]} 2. Nf3 {[%clk 0:02:58]} 2...
e6 {[%clk 0:02:44.7]} 3. c3 {[%clk 0:02:56.8]} 3... Nf6 {[%clk 0:02:43.7]} 4. e5
{[%clk 0:02:56.4]} 4... Nd5 {[%clk 0:02:42.9]} 5. d4 {[%clk 0:02:56.4]} 5...
cxd4 {[%clk 0:02:42.1]} 6. cxd4 {[%clk 0:02:55.9]} 6... b6 {[%clk 0:02:42.2]} 7.
Nc3 {[%clk 0:02:53.4]} 7... Bb7 {[%clk 0:02:42.1]} 8. Bd3 {[%clk 0:02:38.9]}
8... Na6 {[%clk 0:02:41.8]} 9. a3 {[%clk 0:02:35.9]} 9... Nxc3 {[%clk 0:02:19]}
10. bxc3 {[%clk 0:02:35.3]} 10... Nc7 {[%clk 0:02:18.2]} 11. O-O {[%clk
0:02:33.6]} 11... Be7 {[%clk 0:02:16.7]} 12. Re1 {[%clk 0:02:23.9]} 12... O-O
{[%clk 0:02:02.6]} 13. Qc2 {[%clk 0:02:19.9]} 13... Bxf3 {[%clk 0:01:47.2]} 14.
gxf3 {[%clk 0:02:19]} 14... g6 {[%clk 0:01:45.6]} 15. Kh1 {[%clk 0:02:09.2]}
15... Bg5 {[%clk 0:01:27.9]} 16. f4 {[%clk 0:02:06.8]} 16... Bh6 {[%clk
0:01:27.9]} 17. Rg1 {[%clk 0:01:59.8]} 17... Kh8 {[%clk 0:01:21.3]} 18. Qe2
{[%clk 0:01:50.9]} 18... Qh4 {[%clk 0:01:15.7]} 19. Rg4 {[%clk 0:01:47.9]} 19...
Qh5 {[%clk 0:01:14.1]} 20. f3 {[%clk 0:01:35.6]} 20... f5 {[%clk 0:00:51.7]} 21.
exf6 {[%clk 0:00:43.9]} 21... Nd5 {[%clk 0:00:50.5]} 22. Rg5 {[%clk 0:00:34.8]}
22... Bxg5 {[%clk 0:00:34]} 23. fxg5 {[%clk 0:00:34.2]} 23... Nxc3 {[%clk
0:00:29.2]} 24. Qf2 {[%clk 0:00:28.6]} 24... Rac8 {[%clk 0:00:23.9]} 25. Bd2
{[%clk 0:00:27.5]} 25... Nd5 {[%clk 0:00:15.1]} 26. Rg1 {[%clk 0:00:25.3]} 26...
Rc7 {[%clk 0:00:12.4]} 27. f4 {[%clk 0:00:23.5]} 27... Rfc8 {[%clk 0:00:08.7]}
28. Qg2 {[%clk 0:00:15.9]} 28... Kg8 {[%clk 0:00:06.7]} 29. f5 {[%clk
0:00:15.8]} 29... gxf5 {[%clk 0:00:05.2]} 30. Bxf5 {[%clk 0:00:15.3]} 30... Rc2
{[%clk 0:00:03.6]} 31. Bxc2 {[%clk 0:00:14.7]} 31... Rxc2 {[%clk 0:00:04.5]} 32.
Qf2 {[%clk 0:00:13.4]} 32... Kf7 {[%clk 0:00:04.2]} 33. a4 {[%clk 0:00:09.8]}
33... Qg6 {[%clk 0:00:04.6]} 34. Qg2 {[%clk 0:00:07.7]} 34... Qd3 {[%clk
0:00:04.6]} 35. g6+ {[%clk 0:00:06.8]} 35... hxg6 {[%clk 0:00:04.2]} 36. Qh3
{[%clk 0:00:06.8]} 36... Qxh3 {[%clk 0:00:03.7]} 0-1

[Event "*** SCC Grand Prix: Titled Tuesday Blitz"]
[Site "Chess.com"]
[Date "2020.09.29"]
[Round "3"]
[White "rynos0411"]
[Black "Harsha_Bharathakoti"]
[Result "0-1"]
[WhiteElo "2431"]
[BlackElo "2749"]
[TimeControl "180+1"]
[EndTime "10:27:54 PDT"]
[Termination "Harsha_Bharathakoti won by resignation"]

1. d4 {[%clk 0:02:59.4]} 1... d5 {[%clk 0:02:56.5]} 2. c4 {[%clk 0:02:58.5]}
2... e6 {[%clk 0:02:57.2]} 3. Nf3 {[%clk 0:02:56.8]} 3... c5 {[%clk 0:02:57.3]}
4. Nc3 {[%clk 0:02:55.5]} 4... Nc6 {[%clk 0:02:56.9]} 5. cxd5 {[%clk 0:02:55.1]}
5... exd5 {[%clk 0:02:57.8]} 6. g3 {[%clk 0:02:54.6]} 6... Nf6 {[%clk
0:02:57.6]} 7. Bg2 {[%clk 0:02:54.4]} 7... Be7 {[%clk 0:02:58.4]} 8. O-O {[%clk
0:02:54.5]} 8... O-O {[%clk 0:02:59.1]} 9. Be3 {[%clk 0:02:53.2]} 9... c4 {[%clk
0:02:53.7]} 10. Ne5 {[%clk 0:02:49]} 10... Be6 {[%clk 0:02:53.7]} 11. f4 {[%clk
0:02:46.3]} 11... Nxe5 {[%clk 0:02:08]} 12. dxe5 {[%clk 0:02:33.3]} 12... Ng4
{[%clk 0:02:08.2]} 13. Bd4 {[%clk 0:02:33.3]} 13... f5 {[%clk 0:02:09.1]} 14.
exf6 {[%clk 0:02:15.8]} 14... Nxf6 {[%clk 0:01:56.2]} 15. Kh1 {[%clk 0:01:47.9]}
15... Kh8 {[%clk 0:01:24.6]} 16. Rc1 {[%clk 0:01:40.2]} 16... Rc8 {[%clk
0:01:18.7]} 17. h3 {[%clk 0:01:03.9]} 17... Qa5 {[%clk 0:01:08.9]} 18. f5 {[%clk
0:01:00.3]} 18... Bg8 {[%clk 0:01:08.2]} 19. g4 {[%clk 0:01:00.2]} 19... Bc5
{[%clk 0:00:59.5]} 20. g5 {[%clk 0:00:55.3]} 20... Nh5 {[%clk 0:00:58.3]} 21. f6
{[%clk 0:00:17.3]} 21... Ng3+ {[%clk 0:00:31.6]} 22. Kg1 {[%clk 0:00:16.9]}
22... gxf6 {[%clk 0:00:32.2]} 23. Rxf6 {[%clk 0:00:13.4]} 23... Rxf6 {[%clk
0:00:29.5]} 24. gxf6 {[%clk 0:00:14.3]} 24... Qb6 {[%clk 0:00:30.2]} 25. Bxc5
{[%clk 0:00:08.4]} 25... Qxc5+ {[%clk 0:00:31.1]} 26. Kh2 {[%clk 0:00:09]} 26...
Qd6 {[%clk 0:00:27.2]} 27. Kg1 {[%clk 0:00:06.7]} 27... Qxf6 {[%clk 0:00:27.4]}
28. Nxd5 {[%clk 0:00:06.3]} 28... Bxd5 {[%clk 0:00:27]} 29. Bxd5 {[%clk
0:00:05.4]} 29... Re8 {[%clk 0:00:19.2]} 30. Rxc4 {[%clk 0:00:05.2]} 30... Nxe2+
{[%clk 0:00:19]} 31. Kh2 {[%clk 0:00:05.1]} 31... Qe5+ {[%clk 0:00:18.5]} 32.
Kh1 {[%clk 0:00:05.2]} 32... Ng3+ {[%clk 0:00:14.9]} 33. Kg2 {[%clk 0:00:05.5]}
33... Nf5 {[%clk 0:00:15.8]} 34. Qf3 {[%clk 0:00:04.1]} 34... Ne3+ {[%clk
0:00:15.8]} 35. Kg1 {[%clk 0:00:04]} 35... Nxd5 {[%clk 0:00:16.5]} 36. Rg4
{[%clk 0:00:02.9]} 36... Qe1+ {[%clk 0:00:16.7]} 37. Kh2 {[%clk 0:00:02.9]}
37... Re2+ {[%clk 0:00:17.3]} 38. Rg2 {[%clk 0:00:03.2]} 38... Rxg2+ {[%clk
0:00:17.8]} 39. Kxg2 {[%clk 0:00:03.6]} 39... Ne3+ {[%clk 0:00:16.3]} 40. Kh2
{[%clk 0:00:03.5]} 40... Qd2+ {[%clk 0:00:16.8]} 41. Kg3 {[%clk 0:00:03.5]}
41... Qd6+ {[%clk 0:00:16.5]} 42. Kf2 {[%clk 0:00:02.7]} 42... Nd5 {[%clk
0:00:14.9]} 43. b3 {[%clk 0:00:02.6]} 43... Qf6 {[%clk 0:00:14.4]} 0-1

[Event "*** SCC Grand Prix: Titled Tuesday Blitz"]
[Site "Chess.com"]
[Date "2020.09.29"]
[Round "3"]
[White "profofchess"]
[Black "GianmarcoVaR"]
[Result "1-0"]
[WhiteElo "2378"]
[BlackElo "2543"]
[TimeControl "180+1"]
[EndTime "10:27:54 PDT"]
[Termination "profofchess won by checkmate"]

1. e4 {[%clk 0:03:00.9]} 1... c5 {[%clk 0:02:48.4]} 2. Nf3 {[%clk 0:03:00.1]}
2... d6 {[%clk 0:02:48.6]} 3. c3 {[%clk 0:02:59.5]} 3... Nf6 {[%clk 0:02:47.5]}
4. Bc4 {[%clk 0:02:59.6]} 4... Nxe4 {[%clk 0:02:18.9]} 5. Qa4+ {[%clk
0:02:58.6]} 5... Nc6 {[%clk 0:02:18.8]} 6. Bxf7+ {[%clk 0:02:59.5]} 6... Kxf7
{[%clk 0:02:18.4]} 7. Qxe4 {[%clk 0:03:00.4]} 7... e5 {[%clk 0:02:04.5]} 8. d4
{[%clk 0:02:59.4]} 8... h6 {[%clk 0:01:32.5]} 9. dxe5 {[%clk 0:02:47.8]} 9... d5
{[%clk 0:01:32.9]} 10. Qd3 {[%clk 0:02:22.2]} 10... Be6 {[%clk 0:01:29.9]} 11.
Bf4 {[%clk 0:02:21.5]} 11... g5 {[%clk 0:01:29.6]} 12. Bg3 {[%clk 0:02:20.4]}
12... Bg7 {[%clk 0:01:30]} 13. Qe2 {[%clk 0:02:02.3]} 13... Re8 {[%clk
0:00:57.5]} 14. O-O {[%clk 0:02:01]} 14... Kg8 {[%clk 0:00:57.5]} 15. Nbd2
{[%clk 0:01:24.2]} 15... Ne7 {[%clk 0:00:52.5]} 16. h4 {[%clk 0:01:15.5]} 16...
Nf5 {[%clk 0:00:52.2]} 17. hxg5 {[%clk 0:01:06.4]} 17... hxg5 {[%clk 0:00:52.8]}
18. Nh2 {[%clk 0:00:56.7]} 18... Nxg3 {[%clk 0:00:33.2]} 19. fxg3 {[%clk
0:00:56.5]} 19... Qd7 {[%clk 0:00:33.7]} 20. Rae1 {[%clk 0:00:40.3]} 20... g4
{[%clk 0:00:24.5]} 21. Rf4 {[%clk 0:00:36.2]} 21... Bh6 {[%clk 0:00:12.5]} 22.
Nxg4 {[%clk 0:00:36.5]} 22... Bxf4 {[%clk 0:00:11.9]} 23. Nf6+ {[%clk
0:00:36.4]} 23... Kg7 {[%clk 0:00:08.4]} 24. Nxd7 {[%clk 0:00:36.5]} 24... Bxg3
{[%clk 0:00:07.2]} 25. Rf1 {[%clk 0:00:20.3]} 25... Rh8 {[%clk 0:00:02.7]} 26.
Qe3 {[%clk 0:00:11.6]} 26... Bh2+ {[%clk 0:00:01.8]} 27. Kf2 {[%clk 0:00:11.8]}
27... Raf8+ {[%clk 0:00:01.9]} 28. Nxf8 {[%clk 0:00:11.5]} 28... Rxf8+ {[%clk
0:00:01.8]} 29. Ke1 {[%clk 0:00:11.4]} 29... Rxf1+ {[%clk 0:00:01.3]} 30. Nxf1
{[%clk 0:00:10.4]} 30... Kg6 {[%clk 0:00:02.2]} 31. Nxh2 {[%clk 0:00:09.7]}
31... Bf5 {[%clk 0:00:02.6]} 32. Nf3 {[%clk 0:00:09.6]} 32... Be4 {[%clk
0:00:02.9]} 33. e6 {[%clk 0:00:08.8]} 33... Kf6 {[%clk 0:00:03.1]} 34. Qh6+
{[%clk 0:00:08]} 34... Ke7 {[%clk 0:00:02.9]} 35. Ng5 {[%clk 0:00:08.2]} 35...
Bf5 {[%clk 0:00:03.2]} 36. Qg7+ {[%clk 0:00:08.3]} 36... Kd6 {[%clk 0:00:03.7]}
37. Qf6 {[%clk 0:00:08.8]} 37... Be4 {[%clk 0:00:02.1]} 38. e7+ {[%clk
0:00:08.9]} 38... Kd7 {[%clk 0:00:02.4]} 39. Qf8 {[%clk 0:00:08.9]} 39... Bg6
{[%clk 0:00:03]} 40. Nf7 {[%clk 0:00:07.7]} 40... Bxf7 {[%clk 0:00:03.2]} 41.
Qxf7 {[%clk 0:00:07.8]} 41... d4 {[%clk 0:00:03.5]} 42. e8=Q+ {[%clk 0:00:07.9]}
42... Kd6 {[%clk 0:00:04.2]} 43. Qee6# {[%clk 0:00:07.8]} 1-0

[Event "*** SCC Grand Prix: Titled Tuesday Blitz"]
[Site "Chess.com"]
[Date "2020.09.29"]
[Round "3"]
[White "JuliaEfremova"]
[Black "AlexOstrovskiy"]
[Result "0-1"]
[WhiteElo "2350"]
[BlackElo "2736"]
[TimeControl "180+1"]
[EndTime "10:27:56 PDT"]
[Termination "AlexOstrovskiy won by checkmate"]

1. d4 {[%clk 0:03:00.9]} 1... Nf6 {[%clk 0:02:59]} 2. Nf3 {[%clk 0:03:00.6]}
2... c5 {[%clk 0:02:58.7]} 3. c3 {[%clk 0:02:59.7]} 3... d5 {[%clk 0:02:58]} 4.
Bf4 {[%clk 0:02:59]} 4... Nc6 {[%clk 0:02:57.2]} 5. e3 {[%clk 0:02:58.4]} 5...
Qb6 {[%clk 0:02:57.3]} 6. Na3 {[%clk 0:02:57.9]} 6... Nh5 {[%clk 0:02:09.6]} 7.
Bg3 {[%clk 0:02:23.2]} 7... Nxg3 {[%clk 0:01:57.1]} 8. hxg3 {[%clk 0:02:24.1]}
8... c4 {[%clk 0:01:39.1]} 9. b3 {[%clk 0:02:06.8]} 9... e5 {[%clk 0:01:35.4]}
10. Nb1 {[%clk 0:02:06.6]} 10... exd4 {[%clk 0:01:24.8]} 11. exd4 {[%clk
0:02:03.9]} 11... cxb3 {[%clk 0:01:25]} 12. axb3 {[%clk 0:02:03.5]} 12... Be7
{[%clk 0:01:20.5]} 13. Bd3 {[%clk 0:02:02.6]} 13... h6 {[%clk 0:01:20.6]} 14.
Nbd2 {[%clk 0:01:55.1]} 14... O-O {[%clk 0:01:14.4]} 15. O-O {[%clk 0:01:52.3]}
15... Be6 {[%clk 0:01:07.6]} 16. Re1 {[%clk 0:01:50.4]} 16... Rfe8 {[%clk
0:01:04.4]} 17. Nf1 {[%clk 0:01:41.2]} 17... a5 {[%clk 0:01:04.1]} 18. Bc2
{[%clk 0:01:40.2]} 18... Bf8 {[%clk 0:00:59.3]} 19. Qd3 {[%clk 0:01:39.3]} 19...
g6 {[%clk 0:00:59.8]} 20. Nh4 {[%clk 0:01:26.3]} 20... Qa6 {[%clk 0:00:43.3]}
21. Qf3 {[%clk 0:01:09.2]} 21... Ne7 {[%clk 0:00:29.3]} 22. Ne3 {[%clk
0:01:06.3]} 22... Rac8 {[%clk 0:00:23.9]} 23. Nf1 {[%clk 0:00:48.1]} 23... Bg7
{[%clk 0:00:22.5]} 24. Re3 {[%clk 0:00:45.7]} 24... Qb6 {[%clk 0:00:12.7]} 25.
Rae1 {[%clk 0:00:44.8]} 25... Bxd4 {[%clk 0:00:11.8]} 26. Rxe6 {[%clk
0:00:41.2]} 26... fxe6 {[%clk 0:00:10.6]} 27. Nxg6 {[%clk 0:00:39.4]} 27... Bxc3
{[%clk 0:00:04.6]} 28. Nxe7+ {[%clk 0:00:38.6]} 28... Rxe7 {[%clk 0:00:05.5]}
29. Qg4+ {[%clk 0:00:38.2]} 29... Rg7 {[%clk 0:00:05.7]} 30. Qxe6+ {[%clk
0:00:29.7]} 30... Qxe6 {[%clk 0:00:05.6]} 31. Rxe6 {[%clk 0:00:30.6]} 31... Bd4
{[%clk 0:00:06]} 32. Bf5 {[%clk 0:00:20.4]} 32... Rc1 {[%clk 0:00:05.9]} 33.
Re8+ {[%clk 0:00:15.5]} 33... Kf7 {[%clk 0:00:06.1]} 34. Rb8 {[%clk 0:00:16.4]}
34... Kf6 {[%clk 0:00:05.8]} 35. g4 {[%clk 0:00:16]} 35... Re7 {[%clk
0:00:05.8]} 36. g3 {[%clk 0:00:16.2]} 36... Ree1 {[%clk 0:00:05.7]} 37. Bd3
{[%clk 0:00:16.6]} 37... Re7 {[%clk 0:00:03.8]} 38. Kg2 {[%clk 0:00:15.7]} 38...
Rc3 {[%clk 0:00:04.3]} 39. Bb5 {[%clk 0:00:15.4]} 39... Rxb3 {[%clk 0:00:04.2]}
40. Be8 {[%clk 0:00:13.6]} 40... Rb2 {[%clk 0:00:04.3]} 41. Rc8 {[%clk
0:00:12.1]} 41... Rxf2+ {[%clk 0:00:04.1]} 42. Kh3 {[%clk 0:00:12.8]} 42... Rxf1
{[%clk 0:00:03.1]} 43. Kg2 {[%clk 0:00:12.6]} 43... Rf2+ {[%clk 0:00:03.4]} 44.
Kh3 {[%clk 0:00:13.4]} 44... Ree2 {[%clk 0:00:02.7]} 45. Kh4 {[%clk 0:00:14.3]}
45... Rh2# {[%clk 0:00:02.5]} 0-1

[Event "*** SCC Grand Prix: Titled Tuesday Blitz"]
[Site "Chess.com"]
[Date "2020.09.29"]
[Round "3"]
[White "UCantHandleDenker"]
[Black "AniJak"]
[Result "1-0"]
[WhiteElo "2575"]
[BlackElo "2371"]
[TimeControl "180+1"]
[EndTime "10:27:57 PDT"]
[Termination "UCantHandleDenker won by resignation"]

1. Nf3 {[%clk 0:02:59.2]} 1... f5 {[%clk 0:02:58.6]} 2. g3 {[%clk 0:02:56.6]}
2... Nf6 {[%clk 0:02:58]} 3. Bg2 {[%clk 0:02:57.1]} 3... g6 {[%clk 0:02:58.1]}
4. O-O {[%clk 0:02:57.7]} 4... Bg7 {[%clk 0:02:58.4]} 5. c4 {[%clk 0:02:57.6]}
5... d6 {[%clk 0:02:57.5]} 6. Nc3 {[%clk 0:02:58]} 6... e5 {[%clk 0:02:57.2]} 7.
d3 {[%clk 0:02:58.3]} 7... O-O {[%clk 0:02:56.3]} 8. Rb1 {[%clk 0:02:58.9]} 8...
h6 {[%clk 0:02:55.4]} 9. b4 {[%clk 0:02:57.8]} 9... Kh7 {[%clk 0:02:54.8]} 10.
a4 {[%clk 0:02:55.9]} 10... g5 {[%clk 0:02:50.7]} 11. b5 {[%clk 0:02:49.6]}
11... Qe8 {[%clk 0:02:47.9]} 12. Nd2 {[%clk 0:02:43.2]} 12... f4 {[%clk
0:02:37.8]} 13. e3 {[%clk 0:02:42.6]} 13... Nbd7 {[%clk 0:02:32.5]} 14. exf4
{[%clk 0:02:35.9]} 14... exf4 {[%clk 0:02:30]} 15. Nde4 {[%clk 0:02:34.8]} 15...
fxg3 {[%clk 0:02:23.2]} 16. hxg3 {[%clk 0:02:32]} 16... Nxe4 {[%clk 0:02:12]}
17. Nxe4 {[%clk 0:02:27.7]} 17... Nf6 {[%clk 0:02:02.7]} 18. Bb2 {[%clk
0:02:17.8]} 18... Qg6 {[%clk 0:01:59.7]} 19. Bxf6 {[%clk 0:01:58.4]} 19... Bxf6
{[%clk 0:02:00.6]} 20. Nxf6+ {[%clk 0:01:57.9]} 20... Qxf6 {[%clk 0:01:58.5]}
21. Qd2 {[%clk 0:01:50.1]} 21... Rb8 {[%clk 0:01:56.7]} 22. Rbe1 {[%clk
0:01:48.5]} 22... Bf5 {[%clk 0:01:53.9]} 23. Re3 {[%clk 0:01:44.1]} 23... Bg6
{[%clk 0:01:48.2]} 24. Rfe1 {[%clk 0:01:42.2]} 24... Rf7 {[%clk 0:01:46.3]} 25.
Bd5 {[%clk 0:01:31.7]} 25... Rg7 {[%clk 0:01:45.9]} 26. Re6 {[%clk 0:01:30.5]}
26... Qd4 {[%clk 0:01:29]} 27. Re7 {[%clk 0:01:10]} 27... c6 {[%clk 0:01:10.2]}
28. Rxg7+ {[%clk 0:01:03.1]} 28... Kxg7 {[%clk 0:00:56.6]} 29. bxc6 {[%clk
0:01:04]} 29... bxc6 {[%clk 0:00:56.2]} 30. Bxc6 {[%clk 0:00:49.7]} 30... Qxd3
{[%clk 0:00:36.1]} 31. Re7+ {[%clk 0:00:45.2]} 31... Kf8 {[%clk 0:00:33.6]} 32.
Qxd3 {[%clk 0:00:44.5]} 32... Bxd3 {[%clk 0:00:33.1]} 33. Rxa7 {[%clk
0:00:42.2]} 33... Bxc4 {[%clk 0:00:33.1]} 34. Rc7 {[%clk 0:00:38.8]} 34... Be2
{[%clk 0:00:17.1]} 35. Kg2 {[%clk 0:00:36.7]} 35... g4 {[%clk 0:00:16.6]} 36.
Bd5 {[%clk 0:00:30]} 36... Rb6 {[%clk 0:00:14.9]} 37. Rf7+ {[%clk 0:00:24.6]}
37... Ke8 {[%clk 0:00:14.4]} 38. Rf4 {[%clk 0:00:24.1]} 38... Kd7 {[%clk
0:00:13.1]} 39. Rf7+ {[%clk 0:00:23.6]} 39... Kd8 {[%clk 0:00:12.8]} 40. Rf8+
{[%clk 0:00:16.6]} 40... Ke7 {[%clk 0:00:12.7]} 41. Rf7+ {[%clk 0:00:16.8]}
41... Kd8 {[%clk 0:00:13.2]} 42. Rf6 {[%clk 0:00:17]} 42... Ra6 {[%clk
0:00:13.2]} 43. Rxh6 {[%clk 0:00:13.7]} 43... Rxa4 {[%clk 0:00:12.5]} 44. Rxd6+
{[%clk 0:00:13.7]} 44... Ke7 {[%clk 0:00:12.7]} 45. Re6+ {[%clk 0:00:13.8]}
45... Kd7 {[%clk 0:00:12.9]} 46. Rxe2 {[%clk 0:00:14.4]} 46... Rd4 {[%clk
0:00:13.2]} 47. Be6+ {[%clk 0:00:14.5]} 47... Kd6 {[%clk 0:00:13.2]} 48. Bf5
{[%clk 0:00:14.9]} 48... Rb4 {[%clk 0:00:12.2]} 49. Re4 {[%clk 0:00:14.3]} 1-0

[Event "*** SCC Grand Prix: Titled Tuesday Blitz"]
[Site "Chess.com"]
[Date "2020.09.29"]
[Round "3"]
[White "superchthonic"]
[Black "MarceloPlaya"]
[Result "1-0"]
[WhiteElo "2567"]
[BlackElo "2287"]
[TimeControl "180+1"]
[EndTime "10:27:58 PDT"]
[Termination "superchthonic won on time"]

1. g3 {[%clk 0:03:00.9]} 1... e6 {[%clk 0:02:48.2]} 2. Bg2 {[%clk 0:03:01.8]}
2... d5 {[%clk 0:02:46.8]} 3. Nf3 {[%clk 0:03:02.7]} 3... Nf6 {[%clk 0:02:46.1]}
4. O-O {[%clk 0:03:03.6]} 4... c5 {[%clk 0:02:45.9]} 5. c4 {[%clk 0:03:03.8]}
5... d4 {[%clk 0:02:45.2]} 6. e3 {[%clk 0:03:04]} 6... Nc6 {[%clk 0:02:45]} 7.
exd4 {[%clk 0:03:04.4]} 7... cxd4 {[%clk 0:02:44.2]} 8. a3 {[%clk 0:03:04.7]}
8... a5 {[%clk 0:02:43.6]} 9. Re1 {[%clk 0:03:05.2]} 9... Bd6 {[%clk 0:02:30.6]}
10. d3 {[%clk 0:03:00.1]} 10... O-O {[%clk 0:02:27]} 11. Qc2 {[%clk 0:03:00.5]}
11... e5 {[%clk 0:02:24]} 12. c5 {[%clk 0:03:00.9]} 12... Bc7 {[%clk 0:02:21.3]}
13. Nbd2 {[%clk 0:03:00.8]} 13... Bf5 {[%clk 0:02:15.1]} 14. Nc4 {[%clk
0:02:56.6]} 14... Re8 {[%clk 0:02:13.6]} 15. Nh4 {[%clk 0:02:56.5]} 15... Bg4
{[%clk 0:01:53.5]} 16. h3 {[%clk 0:02:52.7]} 16... Be6 {[%clk 0:01:44.7]} 17.
Bd2 {[%clk 0:02:44.3]} 17... Bd5 {[%clk 0:01:39.9]} 18. b4 {[%clk 0:02:31.5]}
18... Bxg2 {[%clk 0:01:36.6]} 19. Kxg2 {[%clk 0:02:07]} 19... axb4 {[%clk
0:01:34.6]} 20. axb4 {[%clk 0:02:06.5]} 20... Rxa1 {[%clk 0:01:34.1]} 21. Rxa1
{[%clk 0:02:07.4]} 21... e4 {[%clk 0:01:30.9]} 22. dxe4 {[%clk 0:02:02.2]} 22...
Nxe4 {[%clk 0:01:29.2]} 23. b5 {[%clk 0:01:31.3]} 23... Qd5 {[%clk 0:01:22.2]}
24. Nf3 {[%clk 0:01:30.4]} 24... Ne5 {[%clk 0:01:12.6]} 25. Ncxe5 {[%clk
0:01:27.2]} 25... Bxe5 {[%clk 0:01:11.6]} 26. Re1 {[%clk 0:01:16.8]} 26... d3
{[%clk 0:00:51.1]} 27. Qc1 {[%clk 0:01:04.6]} 27... Nxc5 {[%clk 0:00:44]} 28.
Qa3 {[%clk 0:00:41.6]} 28... f6 {[%clk 0:00:35.3]} 29. Re3 {[%clk 0:00:38.4]}
29... Rd8 {[%clk 0:00:30.5]} 30. Bb4 {[%clk 0:00:32.1]} 30... Ne6 {[%clk
0:00:25]} 31. h4 {[%clk 0:00:26.1]} 31... Nd4 {[%clk 0:00:21.8]} 32. Rxd3 {[%clk
0:00:22.7]} 32... Qe4 {[%clk 0:00:19]} 33. Qa2+ {[%clk 0:00:18.6]} 33... Kh8
{[%clk 0:00:18]} 34. Re3 {[%clk 0:00:18.8]} 34... Qg4 {[%clk 0:00:10.3]} 35.
Nxe5 {[%clk 0:00:13.6]} 35... fxe5 {[%clk 0:00:09]} 36. Qf7 {[%clk 0:00:11.8]}
36... Nf5 {[%clk 0:00:06.8]} 37. Rxe5 {[%clk 0:00:06.5]} 37... Nxh4+ {[%clk
0:00:06]} 38. Kf1 {[%clk 0:00:06.8]} 38... Rd1+ {[%clk 0:00:04.3]} 39. Be1
{[%clk 0:00:06.9]} 39... Qh3+ {[%clk 0:00:01.8]} 40. Ke2 {[%clk 0:00:07.2]}
40... Qg4+ {[%clk 0:00:02]} 41. f3 {[%clk 0:00:07.7]} 1-0